fUST/lending_fUST_20260107
["ID","MTS","AMOUNT","RATE_DAILY","PERIOD"]
[400627725,1767750647711,-171.33,0.00035702,60]
[400627726,1767750647721,-154.93,0.00035802,60]
[400627727,1767750647730,-182.28,0.00035802,60]
[400627728,1767750647739,-152.72,0.00035802,60]
[400627729,1767750647749,-171.33,0.00035802,60]
[400627730,1767750647758,-198.7368103,0.00035808,30]
[400627731,1767750647767,-155.2827196,0.00035808,30]
[400627732,1767750647776,-613.1996944,0.00035808,30]
[400627733,1767750647785,-193.7123872,0.00035808,30]
[400627734,1767750647794,-153.0,0.00035808,30]
[400627735,1767750647803,-600.6566519,0.00035808,30]
[400627736,1767750647811,-600.6566519,0.00035808,30]
[400627737,1767750647820,-193.7123872,0.00035808,30]
[400627738,1767750647829,-153.0,0.00035808,30]
[400627739,1767750647838,-600.6566519,0.00035808,30]
[400627740,1767750647847,-187.7808557,0.00035808,30]
[400627741,1767750647855,-184.3704767,0.00035808,30]
[400627743,1767750647865,-600.6566519,0.00035808,30]
[400627744,1767750647874,-184.3704767,0.00035808,30]
[400627745,1767750647884,-153.0,0.00035808,30]
[400627747,1767750647893,-600.6566519,0.00035808,30]
[400627749,1767750647902,-193.7123872,0.00035808,30]
[400627751,1767750647911,-184.3704767,0.00035808,30]
[400627753,1767750647920,-600.6566519,0.00035808,30]
[400627755,1767750647929,-193.7123872,0.00035808,30]
[400627757,1767750647939,-600.6566519,0.00035808,30]
[400627760,1767750647949,-184.3704767,0.00035808,30]
[400627762,1767750647960,-153.0,0.00035808,30]
[400627763,1767750647970,-184.3704767,0.00035808,30]
[400627766,1767750647979,-600.6566519,0.00035808,30]
[400627768,1767750647989,-193.7123872,0.00035808,30]
[400627770,1767750648000,-153.0,0.00035808,30]
[400627772,1767750648009,-184.3704767,0.00035808,30]
[400627774,1767750648019,-1000.0,0.00035839,14]
[400627776,1767750648028,-418.4,0.00035845,30]
[400627777,1767750648037,-689.7,0.0003589,39]
[400627779,1767750648046,-7842.62438078,0.00035892,2]
[400627781,1767750648056,-1326.756,0.000359,60]
[400627783,1767750648065,-1326.756,0.000359,60]
[400627786,1767750648074,-1326.75,0.000359,60]
[400627788,1767750648094,-154.93,0.00035902,60]
[400627790,1767750648104,-182.28,0.00035902,60]
[400627792,1767750648114,-152.72,0.00035902,60]
[400627794,1767750648124,-171.33,0.00035902,60]
[400627796,1767750648133,-3886.54717125,0.00035927,38]
[400627798,1767750648146,-600.0,0.00035959,2]
[400627801,1767750648158,-2584.19129277,0.00036,30]
[400627802,1767750648168,-166.0,0.00036,30]
[400627805,1767750648178,-1547.93015465,0.00036,2]
[400627807,1767750648188,-496.55969208,0.00036,120]
[400627808,1767750648198,-1363.39786065,0.00036,120]
[400627810,1767750648207,-154.93,0.00036002,60]
[400627813,1767750648218,-182.28,0.00036002,60]
[400627814,1767750648229,-152.72,0.00036002,60]
[400627816,1767750648238,-171.33,0.00036002,60]
[400627818,1767750648248,-2000.0,0.00036089,7]
[400627820,1767750648258,-154.93,0.00036102,60]
[400627822,1767750648267,-182.28,0.00036102,60]
[400627824,1767750648276,-152.72,0.00036102,60]
[400627826,1767750648285,-171.33,0.00036102,60]
[400627828,1767750648295,-390.0,0.00036164,5]
[400627830,1767750648305,-3609.10149603,0.00036187,4]
[400627832,1767750648314,-154.93,0.00036202,60]
[400627834,1767750648324,-182.29,0.00036202,60]
[400627836,1767750648333,-152.72,0.00036202,60]
[400627838,1767750648343,-171.33,0.00036202,60]
[400627840,1767750648353,-205.01874135,0.0003621,2]
[400627842,1767750648362,-266.65624716,0.0003624,2]
[400627844,1767750648371,-154.93,0.00036302,60]
[400627846,1767750648381,-152.72,0.00036302,60]
[400627848,1767750648391,-171.33,0.00036302,60]
[400627850,1767750648400,-225.56226997,0.00036323,8]
[400627852,1767750648410,-2298.93325076,0.00036332,2]
[400627854,1767750648420,-2145.0,0.00036333,2]
[400627856,1767750648429,-1365.0,0.00036333,2]
[400627858,1767750648439,-628.0,0.00036333,2]
[400627860,1767750648448,-714.0,0.00036333,2]
[400627862,1767750648458,-600.0,0.00036333,2]
[400627864,1767750648468,-376.6844498,0.00036384,30]
[400627866,1767750648477,-154.93,0.00036402,60]
[400627868,1767750648487,-152.72,0.00036402,60]
[400627870,1767750648496,-171.33,0.00036402,60]
[400627872,1767750648505,-689.7,0.00036438,40]
[400627874,1767750648515,-500.0,0.0003648,30]
[400627876,1767750648524,-500.0,0.0003648,30]
[400627878,1767750648534,-500.0,0.0003648,30]
[400627880,1767750648543,-500.0,0.0003648,30]
[400627882,1767750648552,-500.0,0.0003648,30]
[400627884,1767750648562,-500.0,0.0003648,30]
[400627886,1767750648572,-500.0,0.0003648,30]
[400627889,1767750648581,-500.0,0.0003648,30]
[400627891,1767750648594,-500.0,0.0003648,30]
[400627893,1767750648604,-500.0,0.0003648,30]
[400627895,1767750648614,-376.8200359,0.00036493,30]
[400627897,1767750648624,-376.8200359,0.00036493,30]
[400627899,1767750648635,-376.8200359,0.00036493,30]
[400627901,1767750648644,-376.8200359,0.00036493,30]
[400627903,1767750648653,-376.8200359,0.00036493,30]
[400627905,1767750648663,-376.8200359,0.00036493,30]
[400627907,1767750648672,-376.8200359,0.00036493,30]
[400627909,1767750648682,-376.8200359,0.00036493,30]
[400627911,1767750648691,-376.8200359,0.00036493,30]
[400627913,1767750648700,-159.0859127,0.00036493,30]
[400627915,1767750648711,-240.2153094,0.000365,120]
[400627917,1767750648720,-155.1,0.00036502,60]
[400627919,1767750648729,-152.81519316,0.00036502,60]
[400627921,1767750648740,-171.33,0.00036502,60]
[400627923,1767750648750,-171.33,0.00036602,60]
[400627925,1767750648759,-166983.58636343,0.0003663,4]
[400627927,1767750648769,-184.3704767,0.0003663,30]
[400627929,1767750648778,-184.3704767,0.0003663,30]
[400627931,1767750648788,-184.3704767,0.0003663,30]
[400627933,1767750648797,-184.3704767,0.0003663,30]
[400627941,1767750648868,-153.0,0.0003663,30]
[400627943,1767750648878,-184.3704767,0.0003663,30]
[400627945,1767750648887,-184.3704767,0.0003663,30]
[400627948,1767750648899,-184.3704767,0.0003663,30]
[400627950,1767750648908,-153.0,0.0003663,30]
[400627952,1767750648918,-184.3704767,0.0003663,30]
[400627954,1767750648927,-184.3704767,0.0003663,30]
[400627956,1767750648937,-153.0,0.0003663,30]
[400627958,1767750648945,-184.3704767,0.0003663,30]
[400627960,1767750648954,-184.3704767,0.0003663,30]
[400627962,1767750648963,-153.0,0.0003663,30]
[400627964,1767750648973,-184.3704767,0.0003663,30]
[400627966,1767750648982,-184.3704767,0.0003663,30]
[400627968,1767750648991,-153.0,0.0003663,30]
[400627969,1767750649000,-184.3704767,0.0003663,30]
[400627972,1767750649009,-184.3704767,0.0003663,30]
[400627973,1767750649018,-187.3459384,0.0003663,30]
[400627975,1767750649027,-184.3704767,0.0003663,30]
[400627977,1767750649036,-184.3704767,0.0003663,30]
[400627979,1767750649045,-184.3704767,0.0003663,30]
[400627981,1767750649055,-184.3704767,0.0003663,30]
[400627983,1767750649064,-184.3704767,0.0003663,30]
[400627985,1767750649074,-184.3704767,0.0003663,30]
[400627987,1767750649083,-184.3704767,0.0003663,30]
[400627989,1767750649093,-184.3704767,0.0003663,30]
[400627991,1767750649102,-184.3704767,0.0003663,30]
[400627993,1767750649112,-184.3704767,0.0003663,30]
[400627995,1767750649121,-1000.0,0.00036661,14]
[400627997,1767750649130,-171.33,0.00036702,60]
[400627999,1767750649142,-522300.07945756,0.00036702,5]
[400628013,1767750649274,-415.36916342,0.00036702,5]
[400628016,1767750649286,-954.50930635,0.00036702,5]
[400628024,1767750649358,-500.0,0.00013698,2]
[400628026,1767750649368,-500.0,0.00013698,2]
[400628028,1767750649379,-500.0,0.00013698,2]
[400628030,1767750649388,-32.60976324,0.00013698,2]
[400628041,1767750649488,-467.39023676,0.00013698,2]
[400628043,1767750649498,-500.0,0.00013698,2]
[400628045,1767750649507,-518.93796986,0.00013698,2]
[400628047,1767750649517,-3545.52784899,0.00030423,2]
[400630208,1767750868011,1020.0,0.0003,120]
[400630209,1767751016761,300.0,0.00030137,120]
[400630211,1767751034587,266.0,0.00030137,120]
[400630215,1767751599300,-603.0,0.00012908,2]
[400630216,1767751599320,-151.52117963,0.00012926,2]
[400630217,1767751599340,-175.91814616,0.00012941,2]
[400630218,1767751599361,-300.0,0.00012998,2]
[400630219,1767751599380,-173.31588371,0.00012999,2]
[400630220,1767751599400,-500.0,0.00012999,2]
[400630221,1767751599425,-154.51572359,0.00012999,2]
[400630222,1767751599445,-152.0403883,0.00012999,2]
[400630223,1767751599468,-153.90091269,0.00012999,2]
[400630224,1767751599489,-151.75103678,0.00012999,2]
[400630225,1767751599513,-151.15295494,0.00012999,2]
[400630226,1767751599533,-156.98237357,0.00012999,2]
[400630227,1767751599553,-225.60197069,0.00012999,2]
[400630228,1767751599572,-151.9009062,0.00012999,2]
[400630229,1767751599594,-500.0,0.00012999,2]
[400630230,1767751599614,-500.0,0.00012999,2]
[400630231,1767751599634,-7264.0,0.00012999,2]
[400630232,1767751599653,-150.75126271,0.00012999,2]
[400630233,1767751633172,-3863.09579458,0.000131,2]
[400630234,1767751633193,-300.0,0.00013135,2]
[400630235,1767751633218,-500.0,0.00013136,2]
[400630236,1767751633245,-151.6519779,0.00013136,2]
[400630237,1767751633271,-150.84496799,0.00013136,2]
[400630238,1767751633295,-500.0,0.00013136,2]
[400630239,1767751633322,-500.0,0.00013136,2]
[400630240,1767751633348,-259.14783661,0.00013136,2]
[400630241,1767751633388,-7264.0,0.00013136,2]
[400630242,1767751633425,-226.095,0.00013136,2]
[400630243,1767751633454,-500.0,0.0001317,2]
[400630244,1767751633496,-548.68289203,0.0001317,2]
[400630245,1767751633526,-613.52650371,0.0001317,2]
[400630246,1767751633553,-207.63527274,0.0001317,2]
[400630247,1767751633582,-500.0,0.0001317,2]
[400630248,1767751633609,-518.50918508,0.0001317,2]
[400630249,1767751633632,-500.0,0.00013171,2]
[400630250,1767751633660,-500.0,0.00013171,2]
[400630251,1767751633688,-500.0,0.00013171,2]
[400630252,1767751633713,-347.69848549,0.00013171,2]
[400630253,1767751633741,-500.0,0.00013171,2]
[400630254,1767751633772,-500.0,0.00013171,2]
[400630255,1767751633802,-500.0,0.00013171,2]
[400630256,1767751633829,-408.50016124,0.00013171,2]
[400630257,1767751633851,-500.0,0.00013171,2]
[400630258,1767751633876,-500.0,0.00013171,2]
[400630259,1767751633903,-500.0,0.00013171,2]
[400630260,1767751633929,-500.0,0.00013171,2]
[400630261,1767751633951,-500.0,0.00013171,2]
[400630262,1767751633975,-300.0,0.00013171,2]
[400630263,1767751633999,-363.29935092,0.00013171,2]
[400630264,1767751634022,-500.0,0.00013171,2]
[400630265,1767751634046,-500.0,0.00013171,2]
[400630266,1767751634074,-317.92864053,0.00013171,2]
[400630267,1767751634098,-500.0,0.00013171,2]
[400630268,1767751634123,-500.0,0.00013171,2]
[400630269,1767751634148,-42543.03119221,0.00013172,2]
[400630270,1767751680230,282.68,5.994e-05,2]
[400630285,1767751798867,-295.12568369,0.00012999,2]
[400630286,1767751798887,-500.0,0.00012999,2]
[400630287,1767751798916,-152.01319872,0.00012999,2]
[400630288,1767751798944,-500.0,0.00013035,2]
[400630289,1767751798965,-500.0,0.00013035,2]
[400630290,1767751798988,-500.0,0.00013035,2]
[400630291,1767751799009,-347.69848549,0.00013035,2]
[400630292,1767751799032,-500.0,0.00013035,2]
[400630293,1767751799055,-500.0,0.00013035,2]
[400630294,1767751799077,-500.0,0.00013035,2]
[400630295,1767751799099,-318.50016124,0.00013035,2]
[400630296,1767751799120,-500.0,0.00013035,2]
[400630297,1767751799142,-500.0,0.00013035,2]
[400630298,1767751799163,-500.0,0.00013035,2]
[400630299,1767751799184,-500.0,0.00013035,2]
[400630300,1767751799205,-500.0,0.00013035,2]
[400630301,1767751799226,-500.0,0.00013035,2]
[400630302,1767751799445,-500.0,0.00013035,2]
[400630303,1767751799469,-500.0,0.00013035,2]
[400630304,1767751799493,-500.0,0.00013035,2]
[400630305,1767751799515,-500.0,0.00013035,2]
[400630306,1767751799536,-500.0,0.00013035,2]
[400630307,1767751799558,-500.0,0.00013035,2]
[400630308,1767751799579,-500.0,0.00013035,2]
[400630309,1767751799600,-500.0,0.00013035,2]
[400630310,1767751799621,-500.0,0.00013035,2]
[400630311,1767751799645,-500.0,0.00013035,2]
[400630312,1767751799667,-299.70142353,0.00013035,2]
[400630313,1767751799688,-500.0,0.00013035,2]
[400630314,1767751799708,-500.0,0.00013035,2]
[400630315,1767751799727,-500.0,0.00013035,2]
[400630316,1767751799747,-500.0,0.00013035,2]
[400630317,1767751799768,-500.0,0.00013035,2]
[400630318,1767751799788,-500.0,0.00013035,2]
[400630319,1767751799809,-500.0,0.00013035,2]
[400630320,1767751799830,-500.0,0.00013035,2]
[400630321,1767751799850,-500.0,0.00013035,2]
[400630322,1767751799873,-2586.96104733,0.00013036,2]
[400630323,1767751816613,-786.06335872,0.00012904,2]
[400630324,1767751816635,-300.0,0.00013034,2]
[400630325,1767751816659,-3913.93664128,0.00013036,2]
[400630347,1767751832194,-988.94503828,0.00012906,2]
[400630348,1767751832205,-4011.05496172,0.00012906,2]
[400630349,1767751832214,-4344.47588962,0.00013036,2]
[400630400,1767751838216,-6658.0,0.00012999,2]
[400630402,1767751838226,-989154.62642177,0.00013036,2]
[400630404,1767751838235,-605.0,0.00013036,2]
[400630406,1767751838245,-176.29117239,0.00013068,2]
[400630408,1767751838254,-500.0,0.00013136,2]
[400630417,1767751838408,-181.63609348,0.00013136,2]
[400630418,1767751838428,-6658.0,0.00013136,2]
[400630419,1767751838438,-500.0,0.0001317,2]
[400630420,1767751838447,-500.0,0.0001317,2]
[400630421,1767751838456,-500.0,0.0001317,2]
[400630422,1767751838466,-500.0,0.0001317,2]
[400630423,1767751838477,-500.0,0.0001317,2]
[400630424,1767751838487,-500.0,0.0001317,2]
[400630425,1767751838496,-500.0,0.0001317,2]
[400630426,1767751838506,-500.0,0.0001317,2]
[400630427,1767751838515,-500.0,0.0001317,2]
[400630428,1767751838524,-500.0,0.0001317,2]
[400630429,1767751838534,-500.0,0.0001317,2]
[400630430,1767751838543,-500.0,0.0001317,2]
[400630431,1767751838555,-500.0,0.0001317,2]
[400630432,1767751838565,-500.0,0.0001317,2]
[400630433,1767751838575,-500.0,0.0001317,2]
[400630434,1767751838585,-500.0,0.0001317,2]
[400630435,1767751838594,-500.0,0.0001317,2]
[400630436,1767751838603,-500.0,0.0001317,2]
[400630437,1767751838612,-500.0,0.0001317,2]
[400630438,1767751838622,-516.8519158,0.0001317,2]
[400630439,1767751838632,-500.0,0.0001317,2]
[400630441,1767751838641,-500.0,0.0001317,2]
[400630442,1767751838651,-500.0,0.0001317,2]
[400630444,1767751838660,-500.0,0.0001317,2]
[400630446,1767751838670,-500.0,0.0001317,2]
[400630448,1767751838680,-500.0,0.0001317,2]
[400630450,1767751838690,-500.0,0.0001317,2]
[400630452,1767751838700,-500.0,0.0001317,2]
[400630454,1767751838709,-500.0,0.0001317,2]
[400630456,1767751838719,-500.0,0.0001317,2]
[400630458,1767751838728,-500.0,0.0001317,2]
[400630460,1767751838737,-500.0,0.0001317,2]
[400630462,1767751838747,-500.0,0.0001317,2]
[400630464,1767751838756,-500.0,0.0001317,2]
[400630466,1767751838766,-500.0,0.0001317,2]
[400630468,1767751838775,-500.0,0.0001317,2]
[400630470,1767751838785,-500.0,0.0001317,2]
[400630472,1767751838794,-500.0,0.0001317,2]
[400630474,1767751838804,-500.0,0.0001317,2]
[400630476,1767751838813,-500.0,0.0001317,2]
[400630478,1767751838823,-500.0,0.0001317,2]
[400630480,1767751838832,-1000.0,0.000132,2]
[400630482,1767751838841,-1000.0,0.000132,3]
[400630484,1767751838851,-151.0,0.000132,2]
[400630486,1767751838861,-151.0,0.000132,2]
[400630488,1767751838871,-151.0,0.000132,2]
[400630490,1767751838880,-500.43798905,0.00013273,2]
[400630492,1767751838890,-500.20185044,0.00013273,2]
[400630495,1767751838901,-165.55813366,0.00013273,2]
[400630497,1767751838910,-500.60841517,0.00013273,2]
[400630498,1767751838920,-500.21650655,0.00013273,2]
[400630500,1767751838930,-502.95005986,0.00013273,2]
[400630503,1767751838940,-500.47551654,0.00013273,2]
[400630504,1767751838949,-500.57600194,0.00013273,2]
[400630506,1767751838959,-500.75871119,0.00013273,2]
[400630508,1767751838969,-500.27682463,0.00013273,2]
[400630510,1767751838979,-500.92868719,0.00013273,2]
[400630512,1767751838988,-500.90011274,0.00013273,2]
[400630514,1767751838997,-500.0,0.00013273,2]
[400630516,1767751839007,-500.45246138,0.00013273,2]
[400630518,1767751839016,-500.24920647,0.00013273,2]
[400630520,1767751839025,-606.23003046,0.00013273,2]
[400630522,1767751839034,-500.0,0.00013273,2]
[400630524,1767751839044,-500.34622487,0.00013273,2]
[400630526,1767751839054,-501.03678255,0.00013273,2]
[400630529,1767751839065,-500.0,0.00013273,2]
[400630531,1767751839075,-500.0,0.00013273,2]
[400630532,1767751839084,-500.60416551,0.00013273,2]
[400630534,1767751839096,-283.41029146,0.00013273,2]
[400630537,1767751839105,-500.0,0.00013273,2]
[400630538,1767751839116,-500.0,0.00013273,2]
[400630540,1767751839126,-500.0,0.00013273,2]
[400630542,1767751839135,-500.90264467,0.00013273,2]
[400630544,1767751839144,-500.58342384,0.00013273,2]
[400630546,1767751839154,-500.0,0.00013273,2]
[400630548,1767751839162,-501.14574237,0.00013273,2]
[400630550,1767751839172,-500.0,0.00013273,2]
[400630552,1767751839182,-161.87597916,0.00013273,2]
[400630554,1767751839191,-500.0,0.00013273,2]
[400630556,1767751839200,-500.0,0.00013273,2]
[400630558,1767751839209,-6142.62387153,0.00013273,2]
[400630560,1767751839218,-167.50406287,0.00013273,2]
[400630562,1767751839228,-500.84754616,0.00013273,2]
[400630564,1767751839237,-500.6240892,0.00013273,2]
[400630566,1767751839247,-500.25146689,0.00013273,2]
[400630568,1767751839256,-428.58199372,0.00013273,2]
[400630570,1767751839266,-500.54468472,0.00013273,2]
[400630572,1767751839275,-500.32200799,0.00013273,2]
[400630574,1767751839284,-500.0,0.00013273,2]
[400630576,1767751839294,-268.74839898,0.00013273,2]
[400630578,1767751839305,-500.15579403,0.00013273,2]
[400630580,1767751839314,-185.47886974,0.00013273,2]
[400630582,1767751839324,-500.53377419,0.00013273,2]
[400630584,1767751839333,-232.45140117,0.00013273,2]
[400630586,1767751839342,-500.68236052,0.00013273,2]
[400630588,1767751839352,-500.0,0.00013273,2]
[400630590,1767751839361,-500.41385592,0.00013273,2]
[400630592,1767751839371,-500.23751583,0.00013273,2]
[400630594,1767751839380,-500.0,0.00013273,2]
[400630596,1767751839390,-500.0,0.00013273,2]
[400630598,1767751839399,-171.62399248,0.00013273,2]
[400630600,1767751839408,-210.72007588,0.00013273,2]
[400630602,1767751839418,-500.0,0.00013273,2]
[400630604,1767751839428,-500.13729411,0.00013273,2]
[400630606,1767751839437,-500.54580306,0.00013273,2]
[400630608,1767751839446,-500.84398514,0.00013273,2]
[400630610,1767751839455,-500.05264698,0.00013273,2]
[400630612,1767751839464,-500.0,0.00013273,2]
[400630614,1767751839483,-500.0,0.00013273,2]
[400630616,1767751839504,-159.35129287,0.00013273,2]
[400630618,1767751839525,-500.0,0.00013273,2]
[400630620,1767751839536,-500.0,0.00013273,2]
[400630622,1767751839545,-501.08789545,0.00013273,2]
[400630624,1767751839558,-500.0,0.00013273,2]
[400630626,1767751839567,-536.54826057,0.00013273,2]
[400630628,1767751839577,-501.03448136,0.00013273,2]
[400630630,1767751839588,-152.02997996,0.00013273,2]
[400630632,1767751839599,-500.0,0.00013273,2]
[400630634,1767751839610,-152.52802845,0.00013273,2]
[400630636,1767751839621,-167.89474018,0.00013273,2]
[400630638,1767751839631,-6658.0,0.00013273,2]
[400630640,1767751839641,-1384.05815166,0.00013348,2]
[400630642,1767751839656,-152.28064023,0.0001341,2]
[400630644,1767751839666,-157.73141942,0.0001341,2]
[400630646,1767751839676,-574.45512564,0.0001341,2]
[400630648,1767751839685,-6658.0,0.0001341,2]
[400630650,1767751839695,-600.0,0.00013434,2]
[400630652,1767751839706,-300.0,0.00013434,2]
[400630654,1767751839717,-300.0,0.00013434,2]
[400630656,1767751839727,-300.0,0.00013434,2]
[400630658,1767751839737,-300.0,0.00013434,2]
[400630660,1767751839747,-300.0,0.00013434,2]
[400630662,1767751839756,-300.0,0.00013434,2]
[400630664,1767751839765,-300.0,0.00013434,2]
[400630666,1767751839775,-300.0,0.00013434,2]
[400630668,1767751839786,-300.0,0.00013434,2]
[400630670,1767751839795,-300.0,0.00013434,2]
[400630672,1767751839806,-300.0,0.00013434,2]
[400630674,1767751839815,-300.0,0.00013434,2]
[400630676,1767751839825,-300.0,0.00013434,2]
[400630678,1767751839835,-300.0,0.00013434,2]
[400630680,1767751839844,-300.0,0.00013434,2]
[400630682,1767751839854,-201.31343254,0.00013547,2]
[400630684,1767751839863,-244.25610141,0.00013547,2]
[400630686,1767751839874,-150.92544608,0.00013547,2]
[400630688,1767751839883,-6658.0,0.00013547,2]
[400630690,1767751839892,-300.0,0.00013673,2]
[400630692,1767751839901,-6658.0,0.00013684,2]
[400630694,1767751839910,-526.8409524,0.00013698,2]
[400630696,1767751839920,-580.75182676,0.00013698,2]
[400630698,1767751839929,-500.0,0.00013698,2]
[400630700,1767751839948,-500.0,0.00013698,2]
[400630702,1767751839969,-365.68676365,0.00013698,2]
[400630705,1767751839991,-608.88270022,0.00013698,2]
[400630707,1767751840002,-468.24381758,0.00013698,2]
[400630709,1767751840012,-3510.94,0.00013698,2]
[400630710,1767751840023,-3510.94,0.00013698,2]
[400630712,1767751840033,-3510.94,0.00013698,2]
[400630714,1767751840044,-3510.94,0.00013698,2]
[400630716,1767751840054,-3510.94,0.00013698,2]
[400630718,1767751840064,-3510.94,0.00013698,2]
[400630720,1767751840075,-3510.94,0.00013698,2]
[400630722,1767751840086,-3510.94,0.00013698,2]
[400630724,1767751840098,-3510.94,0.00013698,2]
[400630726,1767751840107,-3510.94,0.00013698,2]
[400630728,1767751840119,-3510.94,0.00013698,2]
[400630730,1767751840130,-3510.94,0.00013698,2]
[400630732,1767751840140,-3510.94,0.00013698,2]
[400630735,1767751840151,-3510.94,0.00013698,2]
[400630737,1767751840163,-3510.94,0.00013698,2]
[400630738,1767751840173,-3510.94,0.00013698,2]
[400630740,1767751840183,-3510.94,0.00013698,2]
[400630742,1767751840194,-3510.94,0.00013698,2]
[400630745,1767751840203,-3510.94,0.00013698,2]
[400630746,1767751840213,-3510.94,0.00013698,2]
[400630749,1767751840224,-3510.94,0.00013698,2]
[400630751,1767751840236,-3510.94,0.00013698,2]
[400630753,1767751840263,-3510.94,0.00013698,2]
[400630755,1767751840274,-3511.14803896,0.00013698,2]
[400630757,1767751840284,-517.90864464,0.00013698,2]
[400630759,1767751840294,-1000.0,0.00013699,2]
[400630761,1767751840304,-886.962969,0.00013699,2]
[400630763,1767751840313,-501.06381696,0.00013699,2]
[400630765,1767751840324,-500.0,0.00013699,2]
[400630767,1767751840335,-500.65315035,0.00013699,2]
[400630769,1767751840346,-500.0,0.00013699,2]
[400630771,1767751840355,-500.95078521,0.00013699,2]
[400630773,1767751840366,-502.60955562,0.00013699,2]
[400630775,1767751840375,-500.0,0.00013699,2]
[400630777,1767751840386,-500.67672674,0.00013699,2]
[400630779,1767751840396,-501.23252156,0.00013699,2]
[400630781,1767751840407,-500.0,0.00013699,2]
[400630783,1767751840417,-500.0,0.00013699,2]
[400630785,1767751840426,-500.0,0.00013699,2]
[400630787,1767751840438,-501.10000041,0.00013699,2]
[400630789,1767751840448,-500.60543176,0.00013699,2]
[400630791,1767751840458,-501.00925521,0.00013699,2]
[400630793,1767751840467,-500.6520832,0.00013699,2]
[400630795,1767751840482,-500.0,0.00013699,2]
[400630797,1767751840495,-501.09252862,0.00013699,2]
[400630799,1767751840505,-500.0,0.00013699,2]
[400630801,1767751840514,-500.71592761,0.00013699,2]
[400630803,1767751840524,-500.52586648,0.00013699,2]
[400630805,1767751840534,-500.57015912,0.00013699,2]
[400630807,1767751840543,-500.0,0.00013699,2]
[400630809,1767751840554,-501.92287951,0.00013699,2]
[400630811,1767751840563,-500.0,0.00013699,2]
[400630813,1767751840573,-634.55118999,0.00013699,2]
[400630815,1767751840583,-526.20887462,0.00013699,2]
[400630817,1767751840592,-500.0,0.00013699,2]
[400630819,1767751840601,-541.13241384,0.00013699,2]
[400630821,1767751840610,-500.0,0.00013699,2]
[400630823,1767751840619,-500.0,0.00013699,2]
[400630825,1767751840628,-500.50311115,0.00013699,2]
[400630827,1767751840638,-500.98142921,0.00013699,2]
[400630829,1767751840647,-501.03774756,0.00013699,2]
[400630831,1767751840656,-343.74196572,0.00013699,2]
[400630833,1767751840665,-501.41020298,0.00013699,2]
[400630835,1767751840674,-500.0,0.00013699,2]
[400630837,1767751840684,-500.0,0.00013699,2]
[400630839,1767751840693,-501.3821725,0.00013699,2]
[400630841,1767751840703,-500.0,0.00013699,2]
[400630843,1767751840712,-500.0,0.00013699,2]
[400630845,1767751840721,-500.0,0.00013699,2]
[400630847,1767751840730,-500.0,0.00013699,2]
[400630849,1767751840739,-504.92631464,0.00013699,2]
[400630851,1767751840748,-500.0,0.00013699,2]
[400630853,1767751840757,-254.37750889,0.00013699,2]
[400630855,1767751840767,-500.34331058,0.00013699,2]
[400630857,1767751840776,-500.0,0.00013699,2]
[400630859,1767751840786,-500.0,0.00013699,2]
[400630861,1767751840795,-500.0,0.00013699,2]
[400630863,1767751840806,-500.0,0.00013699,2]
[400630865,1767751840815,-354.67764119,0.00013699,2]
[400630867,1767751840824,-1000.0,0.000138,4]
[400630869,1767751840833,-1000.0,0.00013821,2]
[400630871,1767751840842,-1106.51175795,0.00013821,2]